[Event "Betsys MČR v online bleskovém šachu 2021"]
[Site "Chess.com"]
[Date "2021.04.17"]
[Round "2"]
[White "HerjoAnpe"]
[Black "matyson523"]
[Result "0-1"]
[WhiteElo "1246"]
[BlackElo "1741"]
[TimeControl "180+1"]
[EndTime "9:18:31 PDT"]
[Termination "Uživatel matyson523 zvítězil matem"]

1. d4 {[%clk 0:03:00.9]} 1... d5 {[%clk 0:02:59.7]} 2. Nf3 {[%clk 0:03:00.9]}
2... e6 {[%clk 0:02:59.4]} 3. e3 {[%clk 0:03:01.2]} 3... Bd6 {[%clk 0:02:59.1]}
4. c3 {[%clk 0:03:01.5]} 4... c5 {[%clk 0:02:59.1]} 5. Bd3 {[%clk 0:03:00.1]}
5... Nf6 {[%clk 0:02:58.8]} 6. Nbd2 {[%clk 0:02:58.8]} 6... Nc6 {[%clk
0:02:58.6]} 7. O-O {[%clk 0:02:56.9]} 7... O-O {[%clk 0:02:58.1]} 8. Qe2 {[%clk
0:02:54]} 8... b6 {[%clk 0:02:56.6]} 9. e4 {[%clk 0:02:53.9]} 9... dxe4 {[%clk
0:02:53.2]} 10. Nxe4 {[%clk 0:02:53.9]} 10... Bb7 {[%clk 0:02:47.1]} 11. Nxd6
{[%clk 0:02:50.8]} 11... Qxd6 {[%clk 0:02:46]} 12. Bg5 {[%clk 0:02:43]} 12...
Nd5 {[%clk 0:02:28]} 13. Bxh7+ {[%clk 0:02:33.8]} 13... Kxh7 {[%clk 0:02:24.9]}
14. Bd2 {[%clk 0:02:32.3]} 14... f6 {[%clk 0:02:02.3]} 15. Rae1 {[%clk
0:02:24.7]} 15... Rae8 {[%clk 0:01:56.9]} 16. Nh4 {[%clk 0:02:23.4]} 16... g6
{[%clk 0:01:25.2]} 17. Qg4 {[%clk 0:02:10.5]} 17... Rg8 {[%clk 0:01:17.6]} 18.
f4 {[%clk 0:01:59.4]} 18... Ba6 {[%clk 0:01:05.4]} 19. Rf3 {[%clk 0:01:55.7]}
19... f5 {[%clk 0:00:53.4]} 20. Qg5 {[%clk 0:01:51.7]} 20... Qe7 {[%clk
0:00:52.3]} 21. Qg3 {[%clk 0:01:44]} 21... Nf6 {[%clk 0:00:45.4]} 22. Qh3 {[%clk
0:01:43.4]} 22... Kg7 {[%clk 0:00:41.3]} 23. Rg3 {[%clk 0:01:39.7]} 23... Ng4
{[%clk 0:00:40.1]} 24. Nxf5+ {[%clk 0:01:32.3]} 24... gxf5 {[%clk 0:00:38]} 25.
Rxg4+ {[%clk 0:01:15.7]} 25... fxg4 {[%clk 0:00:37.1]} 26. Qxg4+ {[%clk
0:01:14.8]} 26... Kf7 {[%clk 0:00:33.4]} 27. Qh5+ {[%clk 0:01:12]} 27... Kf8
{[%clk 0:00:29.3]} 28. Re3 {[%clk 0:01:04.5]} 28... Qf7 {[%clk 0:00:25.2]} 29.
Qe2 {[%clk 0:00:56.9]} 29... Bxe2 {[%clk 0:00:21.1]} 30. Rxe2 {[%clk 0:00:55.7]}
30... cxd4 {[%clk 0:00:21.3]} 31. cxd4 {[%clk 0:00:55.3]} 31... Nxd4 {[%clk
0:00:20.4]} 32. Bb4+ {[%clk 0:00:54.2]} 32... Re7 {[%clk 0:00:19.4]} 33. Re4
{[%clk 0:00:51.2]} 33... Ke8 {[%clk 0:00:17.9]} 34. Rxd4 {[%clk 0:00:50.4]}
34... Rg4 {[%clk 0:00:17.3]} 35. Rc4 {[%clk 0:00:46.5]} 35... Kd7 {[%clk
0:00:16.7]} 36. Bxe7 {[%clk 0:00:42.8]} 36... Qxe7 {[%clk 0:00:16.3]} 37. Rd4+
{[%clk 0:00:43.5]} 37... Qd6 {[%clk 0:00:16.6]} 38. Rxd6+ {[%clk 0:00:43.1]}
38... Kxd6 {[%clk 0:00:17.5]} 39. g3 {[%clk 0:00:40.4]} 39... e5 {[%clk
0:00:17.9]} 40. fxe5+ {[%clk 0:00:39.7]} 40... Kxe5 {[%clk 0:00:18.8]} 41. b3
{[%clk 0:00:38.4]} 41... Rd4 {[%clk 0:00:19.1]} 42. h4 {[%clk 0:00:34.7]} 42...
Rd1+ {[%clk 0:00:19.3]} 43. Kh2 {[%clk 0:00:33.7]} 43... Rd2+ {[%clk 0:00:20.2]}
44. Kh3 {[%clk 0:00:33.7]} 44... Rxa2 {[%clk 0:00:21]} 45. g4 {[%clk 0:00:31.6]}
45... Rb2 {[%clk 0:00:21.2]} 46. h5 {[%clk 0:00:31.1]} 46... Rxb3+ {[%clk
0:00:21.7]} 47. Kh4 {[%clk 0:00:31.8]} 47... Kf6 {[%clk 0:00:22.2]} 48. g5+
{[%clk 0:00:31.4]} 48... Kg7 {[%clk 0:00:22.6]} 49. h6+ {[%clk 0:00:30.2]} 49...
Kg6 {[%clk 0:00:23.1]} 50. Kg4 {[%clk 0:00:29.8]} 50... Rb5 {[%clk 0:00:23.2]}
51. Kf4 {[%clk 0:00:29.3]} 51... Rxg5 {[%clk 0:00:23.5]} 52. Ke4 {[%clk
0:00:28.8]} 52... Rh5 {[%clk 0:00:24.4]} 53. Kd4 {[%clk 0:00:28.7]} 53... Rxh6
{[%clk 0:00:24.5]} 54. Kc4 {[%clk 0:00:28.9]} 54... Rh5 {[%clk 0:00:24.8]} 55.
Kb4 {[%clk 0:00:28.1]} 55... a5+ {[%clk 0:00:25.7]} 56. Kb3 {[%clk 0:00:27.6]}
56... b5 {[%clk 0:00:24.3]} 57. Kb2 {[%clk 0:00:27.3]} 57... a4 {[%clk
0:00:25.2]} 58. Ka3 {[%clk 0:00:26.5]} 58... Rh4 {[%clk 0:00:25.5]} 59. Kb2
{[%clk 0:00:25.5]} 59... b4 {[%clk 0:00:26.4]} 60. Kb1 {[%clk 0:00:24.8]} 60...
a3 {[%clk 0:00:27.3]} 61. Ka2 {[%clk 0:00:24.7]} 61... Rh3 {[%clk 0:00:27.7]}
62. Kb1 {[%clk 0:00:24.2]} 62... b3 {[%clk 0:00:28.6]} 63. Kc1 {[%clk
0:00:24.2]} 63... a2 {[%clk 0:00:28.1]} 64. Kb2 {[%clk 0:00:23.7]} 64... Kf5
{[%clk 0:00:28.1]} 65. Ka3 {[%clk 0:00:22.6]} 65... a1=Q+ {[%clk 0:00:26.9]} 66.
Kb4 {[%clk 0:00:22.7]} 66... b2 {[%clk 0:00:26.7]} 67. Kc5 {[%clk 0:00:22.6]}
67... b1=Q {[%clk 0:00:26.7]} 68. Kd6 {[%clk 0:00:22.7]} 68... Rd3+ {[%clk
0:00:26.9]} 69. Kc6 {[%clk 0:00:22.3]} 69... Qa6+ {[%clk 0:00:24.6]} 70. Kc5
{[%clk 0:00:21.8]} 70... Qbb5# {[%clk 0:00:24.9]} 0-1

[Event "Betsys MČR v online bleskovém šachu 2021"]
[Site "Chess.com"]
[Date "2021.04.17"]
[Round "2"]
[White "lockerbieQ"]
[Black "veronikam"]
[Result "1-0"]
[WhiteElo "1739"]
[BlackElo "1220"]
[TimeControl "180+1"]
[EndTime "9:18:32 PDT"]
[Termination "Uživatel lockerbieQ zvítězil na čas"]

1. e4 {[%clk 0:03:00.9]} 1... c5 {[%clk 0:02:59.2]} 2. Nf3 {[%clk 0:03:00.9]}
2... e6 {[%clk 0:02:58.6]} 3. d4 {[%clk 0:03:00.5]} 3... cxd4 {[%clk 0:02:58.8]}
4. Nxd4 {[%clk 0:03:00.7]} 4... a6 {[%clk 0:02:58.8]} 5. Nc3 {[%clk 0:02:59.8]}
5... Bb4 {[%clk 0:02:58.1]} 6. Bd3 {[%clk 0:02:40.2]} 6... Nc6 {[%clk
0:02:57.2]} 7. Nb3 {[%clk 0:02:32.4]} 7... Nf6 {[%clk 0:02:50.4]} 8. O-O {[%clk
0:02:31.2]} 8... O-O {[%clk 0:02:47.8]} 9. a3 {[%clk 0:02:31.4]} 9... Be7 {[%clk
0:02:39.6]} 10. Be3 {[%clk 0:02:28.9]} 10... d5 {[%clk 0:02:39.4]} 11. exd5
{[%clk 0:02:16.3]} 11... Nxd5 {[%clk 0:02:36.8]} 12. Nxd5 {[%clk 0:02:14.9]}
12... exd5 {[%clk 0:02:36.5]} 13. Qh5 {[%clk 0:02:07.4]} 13... g6 {[%clk
0:02:16.6]} 14. Qf3 {[%clk 0:01:46]} 14... Ne5 {[%clk 0:02:08.8]} 15. Qe2 {[%clk
0:01:45.1]} 15... Nxd3 {[%clk 0:02:07.9]} 16. Qxd3 {[%clk 0:01:45]} 16... Bf5
{[%clk 0:02:07.5]} 17. Qd2 {[%clk 0:01:43]} 17... Bf6 {[%clk 0:02:01.9]} 18. c3
{[%clk 0:01:40.2]} 18... Be6 {[%clk 0:01:55]} 19. Nd4 {[%clk 0:01:39.4]} 19...
Rc8 {[%clk 0:01:47.2]} 20. Nxe6 {[%clk 0:01:33.9]} 20... fxe6 {[%clk 0:01:46.6]}
21. Rfe1 {[%clk 0:01:23.6]} 21... Bg7 {[%clk 0:01:43.6]} 22. Bd4 {[%clk
0:01:13.9]} 22... Qd7 {[%clk 0:01:35.8]} 23. Bxg7 {[%clk 0:01:10.8]} 23... Kxg7
{[%clk 0:01:33.7]} 24. Qd4+ {[%clk 0:01:10.4]} 24... Kg8 {[%clk 0:01:32.2]} 25.
Qe5 {[%clk 0:01:07.7]} 25... Rce8 {[%clk 0:01:26.1]} 26. Re2 {[%clk 0:01:03.2]}
26... Qg7 {[%clk 0:01:20.8]} 27. Rae1 {[%clk 0:00:59]} 27... Qxe5 {[%clk
0:01:16.8]} 28. Rxe5 {[%clk 0:00:59.2]} 28... Rf6 {[%clk 0:01:16.7]} 29. f3
{[%clk 0:00:59]} 29... Kf7 {[%clk 0:01:16.2]} 30. Kf2 {[%clk 0:00:59.2]} 30...
Rc8 {[%clk 0:01:11.3]} 31. Ke2 {[%clk 0:00:37.7]} 31... b5 {[%clk 0:01:03]} 32.
Kd3 {[%clk 0:00:36.5]} 32... Ke7 {[%clk 0:00:53.6]} 33. Rxd5 {[%clk 0:00:33.9]}
33... Rf5 {[%clk 0:00:36.6]} 34. Rxf5 {[%clk 0:00:33.7]} 34... gxf5 {[%clk
0:00:36.2]} 35. Ke3 {[%clk 0:00:30.2]} 35... Rg8 {[%clk 0:00:35.7]} 36. Re2
{[%clk 0:00:28.6]} 36... Kf6 {[%clk 0:00:33.3]} 37. Rd2 {[%clk 0:00:28.5]} 37...
h5 {[%clk 0:00:24.9]} 38. g3 {[%clk 0:00:27.8]} 38... Ke5 {[%clk 0:00:20]} 39.
f4+ {[%clk 0:00:26.4]} 39... Kf6 {[%clk 0:00:19.6]} 40. Rd6 {[%clk 0:00:26.7]}
40... a5 {[%clk 0:00:16]} 41. Ra6 {[%clk 0:00:25]} 41... b4 {[%clk 0:00:14.8]}
42. Rxa5 {[%clk 0:00:22.8]} 42... bxc3 {[%clk 0:00:14.9]} 43. bxc3 {[%clk
0:00:23.1]} 43... h4 {[%clk 0:00:15.1]} 44. Kf3 {[%clk 0:00:22.3]} 44... hxg3
{[%clk 0:00:14]} 45. hxg3 {[%clk 0:00:22.3]} 45... Rc8 {[%clk 0:00:13.7]} 46.
Ra7 {[%clk 0:00:14.8]} 46... Rxc3+ {[%clk 0:00:13.4]} 47. Kf2 {[%clk 0:00:15.1]}
47... Kg6 {[%clk 0:00:11.1]} 48. a4 {[%clk 0:00:14]} 48... Ra3 {[%clk
0:00:10.3]} 49. a5 {[%clk 0:00:13.9]} 49... Kh5 {[%clk 0:00:09.2]} 50. a6 {[%clk
0:00:12.2]} 50... Kg4 {[%clk 0:00:07.8]} 51. Rg7+ {[%clk 0:00:12.1]} 51... Kh5
{[%clk 0:00:07.5]} 52. a7 {[%clk 0:00:11.7]} 52... Kh6 {[%clk 0:00:07.6]} 53.
Re7 {[%clk 0:00:11.3]} 53... Kh5 {[%clk 0:00:03.9]} 54. Rxe6 {[%clk 0:00:09.7]}
54... Rxa7 {[%clk 0:00:01.8]} 55. Rf6 {[%clk 0:00:09.7]} 1-0

[Event "Betsys MČR v online bleskovém šachu 2021"]
[Site "Chess.com"]
[Date "2021.04.17"]
[Round "2"]
[White "Maty_2010"]
[Black "ZdenekRomanek"]
[Result "0-1"]
[WhiteElo "898"]
[BlackElo "1606"]
[TimeControl "180+1"]
[EndTime "9:18:32 PDT"]
[Termination "Uživatel ZdenekRomanek zvítězil matem"]

1. e4 {[%clk 0:02:59.9]} 1... e6 {[%clk 0:02:59.3]} 2. e5 {[%clk 0:02:56.9]}
2... d5 {[%clk 0:02:58.7]} 3. Bb5+ {[%clk 0:02:54.8]} 3... c6 {[%clk 0:02:57.8]}
4. Bd3 {[%clk 0:02:55.2]} 4... Bc5 {[%clk 0:02:55.4]} 5. Nf3 {[%clk 0:02:54.6]}
5... Ne7 {[%clk 0:02:51.9]} 6. Ng5 {[%clk 0:02:53.2]} 6... Ng6 {[%clk
0:02:49.4]} 7. Qf3 {[%clk 0:02:51.5]} 7... Qxg5 {[%clk 0:02:42.8]} 8. O-O {[%clk
0:02:41.4]} 8... O-O {[%clk 0:02:40.3]} 9. Be2 {[%clk 0:02:40.4]} 9... Qxe5
{[%clk 0:02:37.7]} 10. c3 {[%clk 0:02:27.6]} 10... Qd6 {[%clk 0:02:32.6]} 11. d4
{[%clk 0:02:25.1]} 11... Bb6 {[%clk 0:02:31.5]} 12. Bd3 {[%clk 0:02:21.6]} 12...
Bc7 {[%clk 0:02:29]} 13. g3 {[%clk 0:02:19.2]} 13... Nd7 {[%clk 0:02:26]} 14.
Qh5 {[%clk 0:02:17.6]} 14... Nf6 {[%clk 0:02:22.4]} 15. Qg5 {[%clk 0:02:14.6]}
15... Ne4 {[%clk 0:02:10.3]} 16. Qe3 {[%clk 0:02:07.4]} 16... Nf6 {[%clk
0:02:05.7]} 17. Qe2 {[%clk 0:02:03.2]} 17... Bd7 {[%clk 0:02:02.8]} 18. Bg5
{[%clk 0:02:02.9]} 18... Bd8 {[%clk 0:02:01.1]} 19. Na3 {[%clk 0:02:01.8]} 19...
h6 {[%clk 0:01:54.3]} 20. Bh4 {[%clk 0:01:59.6]} 20... Nxh4 {[%clk 0:01:52.5]}
21. gxh4 {[%clk 0:01:59.5]} 21... Bc7 {[%clk 0:01:50.2]} 22. f3 {[%clk
0:01:27.9]} 22... Rae8 {[%clk 0:01:48.3]} 23. Rae1 {[%clk 0:01:24]} 23... Nh5
{[%clk 0:01:43.4]} 24. Rf2 {[%clk 0:01:19.6]} 24... Nf4 {[%clk 0:01:41.5]} 25.
Qe3 {[%clk 0:01:13.9]} 25... Nxd3 {[%clk 0:01:39.8]} 26. Qxd3 {[%clk 0:01:12.6]}
26... e5 {[%clk 0:01:39]} 27. dxe5 {[%clk 0:01:05.3]} 27... Rxe5 {[%clk
0:01:36.4]} 28. Rxe5 {[%clk 0:00:56.4]} 28... Qxe5 {[%clk 0:01:35]} 29. f4
{[%clk 0:00:55.5]} 29... Qf6 {[%clk 0:01:30.2]} 30. Qg3 {[%clk 0:00:47.3]} 30...
Re8 {[%clk 0:01:24.2]} 31. Nc2 {[%clk 0:00:44.1]} 31... Qg6 {[%clk 0:01:16.9]}
32. Qxg6 {[%clk 0:00:39.1]} 32... fxg6 {[%clk 0:01:15.3]} 33. Rg2 {[%clk
0:00:31.7]} 33... Bf5 {[%clk 0:01:11.6]} 34. Nb4 {[%clk 0:00:25.8]} 34... Bxf4
{[%clk 0:00:59.8]} 35. Rf2 {[%clk 0:00:23.4]} 35... Be3 {[%clk 0:00:58.4]} 36.
Kf1 {[%clk 0:00:19.5]} 36... Bxf2 {[%clk 0:00:57.4]} 37. Kxf2 {[%clk 0:00:20.1]}
37... Re4 {[%clk 0:00:54]} 38. Kf3 {[%clk 0:00:20.2]} 38... Rxh4 {[%clk
0:00:52.4]} 39. Kg3 {[%clk 0:00:20.1]} 39... Re4 {[%clk 0:00:47.6]} 40. Kf3
{[%clk 0:00:19.6]} 40... Re1 {[%clk 0:00:45.9]} 41. Kf2 {[%clk 0:00:18.6]} 41...
Rb1 {[%clk 0:00:44.1]} 42. b3 {[%clk 0:00:17.3]} 42... Rb2+ {[%clk 0:00:43.4]}
43. Ke1 {[%clk 0:00:16.2]} 43... Rxh2 {[%clk 0:00:42.1]} 44. Kf1 {[%clk
0:00:15.1]} 44... g5 {[%clk 0:00:41.2]} 45. Kg1 {[%clk 0:00:14]} 45... Rb2
{[%clk 0:00:37.5]} 46. Kf1 {[%clk 0:00:13.2]} 46... g4 {[%clk 0:00:36.5]} 47.
Ke1 {[%clk 0:00:13.7]} 47... g3 {[%clk 0:00:35.6]} 48. Kf1 {[%clk 0:00:14.3]}
48... Be4 {[%clk 0:00:33.7]} 49. Kg1 {[%clk 0:00:14.6]} 49... g2 {[%clk
0:00:32.9]} 50. c4 {[%clk 0:00:12.7]} 50... h5 {[%clk 0:00:31.6]} 51. cxd5
{[%clk 0:00:12.4]} 51... cxd5 {[%clk 0:00:30.4]} 52. a3 {[%clk 0:00:08.5]} 52...
h4 {[%clk 0:00:29.3]} 53. a4 {[%clk 0:00:07.8]} 53... h3 {[%clk 0:00:28.3]} 54.
Kh2 {[%clk 0:00:06.4]} 54... g5 {[%clk 0:00:26.4]} 55. a5 {[%clk 0:00:05]} 55...
g4 {[%clk 0:00:25.2]} 56. a6 {[%clk 0:00:05.2]} 56... bxa6 {[%clk 0:00:22.9]}
57. Nxa6 {[%clk 0:00:04.7]} 57... g3+ {[%clk 0:00:22.1]} 58. Kxg3 {[%clk
0:00:03.2]} 58... g1=Q+ {[%clk 0:00:21]} 59. Kxh3 {[%clk 0:00:03.9]} 59... Rh2#
{[%clk 0:00:19.3]} 0-1

[Event "Betsys MČR v online bleskovém šachu 2021"]
[Site "Chess.com"]
[Date "2021.04.17"]
[Round "2"]
[White "fortale"]
[Black "Mitram64"]
[Result "1-0"]
[WhiteElo "2335"]
[BlackElo "1986"]
[TimeControl "180+1"]
[EndTime "9:18:35 PDT"]
[Termination "Uživatel fortale zvítězil matem"]

1. e4 {[%clk 0:03:00.9]} 1... c6 {[%clk 0:02:59]} 2. c4 {[%clk 0:03:00.5]} 2...
d5 {[%clk 0:02:58.6]} 3. cxd5 {[%clk 0:03:01.4]} 3... cxd5 {[%clk 0:02:58.5]} 4.
exd5 {[%clk 0:03:02.3]} 4... Nf6 {[%clk 0:02:58.5]} 5. Bb5+ {[%clk 0:03:01.6]}
5... Nbd7 {[%clk 0:02:57.1]} 6. Nc3 {[%clk 0:03:01.6]} 6... g6 {[%clk
0:02:56.3]} 7. d4 {[%clk 0:03:01.3]} 7... Bg7 {[%clk 0:02:55.5]} 8. d6 {[%clk
0:03:01.8]} 8... exd6 {[%clk 0:02:51.3]} 9. Qe2+ {[%clk 0:03:01.7]} 9... Qe7
{[%clk 0:02:50.1]} 10. Bf4 {[%clk 0:03:01.6]} 10... d5 {[%clk 0:02:46.4]} 11.
Bd6 {[%clk 0:02:55.3]} 11... Qe6 {[%clk 0:02:39]} 12. Qxe6+ {[%clk 0:02:27.5]}
12... fxe6 {[%clk 0:02:38]} 13. Nf3 {[%clk 0:02:27]} 13... h6 {[%clk 0:02:32.9]}
14. Ne5 {[%clk 0:02:20.7]} 14... a6 {[%clk 0:02:31.3]} 15. Bxd7+ {[%clk
0:02:17.2]} 15... Nxd7 {[%clk 0:02:19.6]} 16. Nxg6 {[%clk 0:02:16.7]} 16... Rg8
{[%clk 0:02:17.1]} 17. O-O-O {[%clk 0:01:59.9]} 17... Bxd4 {[%clk 0:02:09.6]}
18. Rxd4 {[%clk 0:01:59]} 18... Rxg6 {[%clk 0:02:08.8]} 19. Re1 {[%clk
0:01:55.5]} 19... Kf7 {[%clk 0:02:07.8]} 20. g3 {[%clk 0:01:25.9]} 20... Nb6
{[%clk 0:01:51.2]} 21. b3 {[%clk 0:01:13.6]} 21... Bd7 {[%clk 0:01:49.4]} 22.
Kb2 {[%clk 0:01:12.8]} 22... Rag8 {[%clk 0:01:45.8]} 23. Be5 {[%clk 0:01:12.1]}
23... Rg4 {[%clk 0:01:43.2]} 24. f4 {[%clk 0:01:08.5]} 24... h5 {[%clk
0:01:42.8]} 25. Rb4 {[%clk 0:01:07.6]} 25... Nc8 {[%clk 0:01:37]} 26. Rxb7
{[%clk 0:01:07.1]} 26... Ke8 {[%clk 0:01:36.7]} 27. Bb8 {[%clk 0:01:01.2]} 27...
h4 {[%clk 0:01:31.8]} 28. Nxd5 {[%clk 0:01:01.1]} 28... R8g6 {[%clk 0:01:20.3]}
29. Ne3 {[%clk 0:00:53.9]} 29... hxg3 {[%clk 0:01:19]} 30. Nxg4 {[%clk
0:00:53.5]} 30... Rxg4 {[%clk 0:01:18.7]} 31. hxg3 {[%clk 0:00:53.6]} 31... Rxg3
{[%clk 0:01:18.9]} 32. Rd1 {[%clk 0:00:48.6]} 32... Rg7 {[%clk 0:01:14.8]} 33.
Ka3 {[%clk 0:00:47.5]} 33... Rf7 {[%clk 0:01:08.8]} 34. Be5 {[%clk 0:00:47.2]}
34... Bb5 {[%clk 0:01:04.6]} 35. Rb8 {[%clk 0:00:43.2]} 35... Bd7 {[%clk
0:01:04.5]} 36. Rc1 {[%clk 0:00:41.2]} 36... Kd8 {[%clk 0:01:02.5]} 37. Rh1
{[%clk 0:00:34.7]} 37... Rf8 {[%clk 0:00:58.2]} 38. Rd1 {[%clk 0:00:30.9]} 38...
Rf7 {[%clk 0:00:56.7]} 39. Kb4 {[%clk 0:00:30.1]} 39... Rh7 {[%clk 0:00:51.4]}
40. Ka5 {[%clk 0:00:29.3]} 40... Rh2 {[%clk 0:00:49.9]} 41. a4 {[%clk
0:00:26.7]} 41... Rh3 {[%clk 0:00:49.5]} 42. Rb7 {[%clk 0:00:26.3]} 42... Rh7
{[%clk 0:00:47.7]} 43. Kxa6 {[%clk 0:00:26.1]} 43... Rf7 {[%clk 0:00:45]} 44. b4
{[%clk 0:00:24.3]} 44... Rh7 {[%clk 0:00:43.9]} 45. b5 {[%clk 0:00:24.6]} 45...
Ke8 {[%clk 0:00:41.5]} 46. Rc1 {[%clk 0:00:24.1]} 46... Rf7 {[%clk 0:00:37.1]}
47. Rb8 {[%clk 0:00:24.3]} 47... Kd8 {[%clk 0:00:35.5]} 48. Bc7+ {[%clk
0:00:24.4]} 48... Ke7 {[%clk 0:00:34.5]} 49. Be5 {[%clk 0:00:23.3]} 49... Nd6
{[%clk 0:00:33.3]} 50. Bxd6+ {[%clk 0:00:23.2]} 50... Kxd6 {[%clk 0:00:33.1]}
51. Rb7 {[%clk 0:00:23.4]} 51... Rxf4 {[%clk 0:00:30.7]} 52. Rd1+ {[%clk
0:00:22.9]} 52... Kc5 {[%clk 0:00:28.8]} 53. Rbxd7 {[%clk 0:00:21.5]} 53...
Rxa4+ {[%clk 0:00:27.6]} 54. Kb7 {[%clk 0:00:22]} 54... Kxb5 {[%clk 0:00:27.4]}
55. Rc7 {[%clk 0:00:22]} 55... Re4 {[%clk 0:00:24.9]} 56. Rb1+ {[%clk
0:00:21.7]} 56... Ka4 {[%clk 0:00:22.4]} 57. Kb8 {[%clk 0:00:22]} 57... Re5
{[%clk 0:00:19.9]} 58. Ra7+ {[%clk 0:00:21.9]} 58... Ra5 {[%clk 0:00:20]} 59.
Ra1+ {[%clk 0:00:22.4]} 59... Kb5 {[%clk 0:00:19.4]} 60. R1xa5+ {[%clk
0:00:22.2]} 60... Kb4 {[%clk 0:00:19.1]} 61. Re5 {[%clk 0:00:21.2]} 61... Kc4
{[%clk 0:00:18.2]} 62. Rxe6 {[%clk 0:00:21.7]} 62... Kd5 {[%clk 0:00:18.4]} 63.
Raa6 {[%clk 0:00:21.8]} 63... Kc5 {[%clk 0:00:18.3]} 64. Re5+ {[%clk 0:00:22.1]}
64... Kd4 {[%clk 0:00:18]} 65. Rh5 {[%clk 0:00:22.5]} 65... Ke4 {[%clk 0:00:18]}
66. Ra4+ {[%clk 0:00:22.5]} 66... Kf3 {[%clk 0:00:18]} 67. Rh3+ {[%clk
0:00:22.6]} 67... Kg2 {[%clk 0:00:18.2]} 68. Rb3 {[%clk 0:00:23.5]} 68... Kf2
{[%clk 0:00:18.2]} 69. Ra2+ {[%clk 0:00:24.4]} 69... Ke1 {[%clk 0:00:18.4]} 70.
Rb1# {[%clk 0:00:25.3]} 1-0

[Event "Betsys MČR v online bleskovém šachu 2021"]
[Site "Chess.com"]
[Date "2021.04.17"]
[Round "2"]
[White "Listro33"]
[Black "xPsylocke"]
[Result "0-1"]
[WhiteElo "1887"]
[BlackElo "2231"]
[TimeControl "180+1"]
[EndTime "9:18:35 PDT"]
[Termination "Uživatel xPsylocke zvítězil na čas"]

1. d4 {[%clk 0:03:00.9]} 1... Nf6 {[%clk 0:02:58.9]} 2. Bf4 {[%clk 0:02:59.8]}
2... g6 {[%clk 0:02:59]} 3. e3 {[%clk 0:02:59.8]} 3... Bg7 {[%clk 0:02:59]} 4.
Nf3 {[%clk 0:02:59.8]} 4... d6 {[%clk 0:02:59.1]} 5. Be2 {[%clk 0:02:58.6]} 5...
O-O {[%clk 0:02:59.2]} 6. O-O {[%clk 0:02:58.1]} 6... Nbd7 {[%clk 0:02:59.2]} 7.
h3 {[%clk 0:02:57.5]} 7... h6 {[%clk 0:02:57.2]} 8. c4 {[%clk 0:02:54.8]} 8...
Qe8 {[%clk 0:02:43.7]} 9. Bh2 {[%clk 0:02:36.2]} 9... e5 {[%clk 0:02:37.7]} 10.
Nc3 {[%clk 0:02:35.8]} 10... c6 {[%clk 0:02:37.2]} 11. Rc1 {[%clk 0:02:34]}
11... Qe7 {[%clk 0:02:34.8]} 12. b4 {[%clk 0:02:32.8]} 12... Ne8 {[%clk
0:02:01.8]} 13. b5 {[%clk 0:02:14.7]} 13... f5 {[%clk 0:01:36.7]} 14. bxc6
{[%clk 0:01:45.4]} 14... bxc6 {[%clk 0:01:37.6]} 15. d5 {[%clk 0:01:44.9]} 15...
c5 {[%clk 0:01:32.2]} 16. Nb5 {[%clk 0:01:37.1]} 16... e4 {[%clk 0:01:26.9]} 17.
Nd2 {[%clk 0:01:28]} 17... a6 {[%clk 0:01:25.5]} 18. Nc3 {[%clk 0:01:14.7]}
18... Ne5 {[%clk 0:01:25.7]} 19. Qc2 {[%clk 0:01:12.4]} 19... g5 {[%clk
0:01:19]} 20. Na4 {[%clk 0:01:11.3]} 20... Rb8 {[%clk 0:01:05.8]} 21. Rb1 {[%clk
0:01:09.5]} 21... Rxb1 {[%clk 0:01:04.9]} 22. Rxb1 {[%clk 0:01:09.6]} 22... Nd7
{[%clk 0:01:05.3]} 23. Nb6 {[%clk 0:01:04.6]} 23... Nxb6 {[%clk 0:01:03]} 24.
Rxb6 {[%clk 0:01:03.6]} 24... Qc7 {[%clk 0:00:55.9]} 25. Qb3 {[%clk 0:00:55.3]}
25... Rf7 {[%clk 0:00:51.8]} 26. Bh5 {[%clk 0:00:54.1]} 26... Qd7 {[%clk
0:00:43.6]} 27. Bxf7+ {[%clk 0:00:50.6]} 27... Kxf7 {[%clk 0:00:44.5]} 28. Nb1
{[%clk 0:00:37.3]} 28... h5 {[%clk 0:00:41.5]} 29. Nc3 {[%clk 0:00:36.3]} 29...
h4 {[%clk 0:00:37.5]} 30. Na4 {[%clk 0:00:31]} 30... g4 {[%clk 0:00:37.3]} 31.
hxg4 {[%clk 0:00:29.1]} 31... fxg4 {[%clk 0:00:37.2]} 32. Bf4 {[%clk 0:00:28.8]}
32... Bf6 {[%clk 0:00:34.8]} 33. Rb8 {[%clk 0:00:27.2]} 33... Qc7 {[%clk
0:00:29.7]} 34. Qb6 {[%clk 0:00:26]} 34... Bd7 {[%clk 0:00:24.5]} 35. Qxc7
{[%clk 0:00:25]} 35... Nxc7 {[%clk 0:00:25.4]} 36. Rb7 {[%clk 0:00:25]} 36...
Bd8 {[%clk 0:00:25.8]} 37. Nb6 {[%clk 0:00:20.6]} 37... Ke7 {[%clk 0:00:21.9]}
38. Nxd7 {[%clk 0:00:19.4]} 38... Kxd7 {[%clk 0:00:22.8]} 39. Rb3 {[%clk
0:00:15.6]} 39... a5 {[%clk 0:00:21.1]} 40. Kf1 {[%clk 0:00:14.4]} 40... Na6
{[%clk 0:00:20.9]} 41. Rb7+ {[%clk 0:00:13.4]} 41... Bc7 {[%clk 0:00:20]} 42.
Bg5 {[%clk 0:00:12.6]} 42... h3 {[%clk 0:00:18.7]} 43. gxh3 {[%clk 0:00:11.8]}
43... gxh3 {[%clk 0:00:19.6]} 44. Kg1 {[%clk 0:00:11]} 44... Nb4 {[%clk
0:00:18.5]} 45. a3 {[%clk 0:00:10.2]} 45... Nc2 {[%clk 0:00:18.5]} 46. Kh2
{[%clk 0:00:10.1]} 46... Nxa3 {[%clk 0:00:18.3]} 47. Kxh3 {[%clk 0:00:09.5]}
47... Nxc4 {[%clk 0:00:18.7]} 48. Ra7 {[%clk 0:00:07.2]} 48... Nb6 {[%clk
0:00:15.5]} 49. Bf6 {[%clk 0:00:06.5]} 49... Nxd5 {[%clk 0:00:15.9]} 50. Ba1
{[%clk 0:00:06]} 50... Kc6 {[%clk 0:00:15.6]} 51. Ra8 {[%clk 0:00:04.6]} 51...
Bb6 {[%clk 0:00:14.3]} 52. Kg4 {[%clk 0:00:03.4]} 52... Kb5 {[%clk 0:00:12.3]}
53. Rb8 {[%clk 0:00:01.2]} 53... Nb4 {[%clk 0:00:12.2]} 54. Ra8 {[%clk
0:00:01.9]} 54... Nd3 {[%clk 0:00:12.4]} 55. Bc3 {[%clk 0:00:01.6]} 55... Nxf2+
{[%clk 0:00:12.3]} 56. Kg3 {[%clk 0:00:02.1]} 56... Nd1 {[%clk 0:00:12.6]} 57.
Bd2 {[%clk 0:00:01.1]} 57... Nb2 {[%clk 0:00:12.9]} 0-1